fUSD/lending_fUSD_20241123
["ID","MTS","AMOUNT","RATE_DAILY","PERIOD"]
[343174541,1732395099933,-1048.37,0.00055974,120]
[343174542,1732395099943,-500.0,0.00055974,30]
[343174543,1732395099952,-300.0,0.00055975,30]
[343174544,1732395099964,-400.0,0.00055975,120]
[343174545,1732395099973,-1353.79835513,0.00055975,120]
[343174546,1732395099982,-400.0,0.00055975,120]
[343174547,1732395099992,-151.0,0.00055975,120]
[343174548,1732395100002,-151.0,0.00055975,120]
[343174549,1732395100011,-221.331552,0.00055975,120]
[343174550,1732395100021,-221.331552,0.00055975,120]
[343174551,1732395100030,-151.0,0.00055975,120]
[343174552,1732395100040,-919.83258,0.00055975,120]
[343174553,1732395100050,-919.83258,0.00055975,120]
[343174554,1732395100059,-151.0,0.00055975,120]
[343174555,1732395100069,-601.07,0.00055975,120]
[343174556,1732395100078,-151.0,0.00055975,120]
[343174557,1732395100088,-151.0,0.00055975,120]
[343174558,1732395100098,-530.545643,0.00055975,120]
[343174559,1732395100114,-530.545643,0.00055975,120]
[343174560,1732395100124,-500.0,0.00055975,120]
[343174561,1732395100134,-500.0,0.00055975,120]
[343174562,1732395100144,-274.64,0.00055975,120]
[343174563,1732395100155,-570.950524,0.00055975,120]
[343174564,1732395100166,-570.950524,0.00055975,120]
[343174565,1732395100179,-168.0,0.00055975,120]
[343174566,1732395100191,-168.0,0.00055975,120]
[343174567,1732395100203,-168.0,0.00055975,120]
[343174568,1732395100216,-301.21,0.00055975,120]
[343174569,1732395100226,-500.0,0.00055975,120]
[343174570,1732395100237,-500.0,0.00055975,120]
[343174571,1732395100248,-500.0,0.00055975,120]
[343174572,1732395100258,-196.4,0.00055975,120]
[343174573,1732395100267,-500.0,0.00055975,120]
[343174574,1732395100277,-500.0,0.00055975,120]
[343174575,1732395100287,-500.0,0.00055975,120]
[343174576,1732395100297,-500.0,0.00055975,120]
[343174577,1732395100307,-447.89093381,0.00055975,120]
[343174578,1732395100317,-500.0,0.00055975,120]
[343174579,1732395100326,-500.0,0.00055975,120]
[343174580,1732395100336,-500.0,0.00055975,120]
[343174581,1732395100348,-500.0,0.00055975,120]
[343174582,1732395100365,-500.0,0.00055975,120]
[343174583,1732395100376,-500.0,0.00055975,120]
[343174584,1732395100386,-500.0,0.00055975,120]
[343174585,1732395100397,-500.0,0.00055975,120]
[343174586,1732395100407,-500.0,0.00055975,120]
[343174587,1732395100417,-180.72,0.00055975,120]
[343174588,1732395100427,-500.0,0.00055975,120]
[343174589,1732395100437,-500.0,0.00055975,120]
[343174590,1732395100448,-500.0,0.00055975,120]
[343174591,1732395100575,-500.0,0.00055975,120]
[343174592,1732395100590,-212.0,0.00055975,120]
[343174593,1732395100606,-500.0,0.00055975,120]
[343174594,1732395100616,-592.2,0.00055975,120]
[343174595,1732395100625,-739.86,0.00055975,120]
[343174596,1732395100635,-739.86,0.00055975,120]
[343174597,1732395100645,-739.86,0.00055975,120]
[343174598,1732395100654,-739.86,0.00055975,120]
[343174599,1732395100663,-739.86,0.00055975,120]
[343174600,1732395100673,-739.86,0.00055975,120]
[343174601,1732395100683,-739.86,0.00055975,120]
[343174602,1732395100693,-739.86,0.00055975,120]
[343174603,1732395100703,-739.86,0.00055975,120]
[343174604,1732395100713,-739.95506686,0.00055975,120]
[343174605,1732395100723,-500.0,0.00055975,120]
[343174606,1732395100732,-500.0,0.00055975,120]
[343174607,1732395100742,-500.0,0.00055975,120]
[343174608,1732395100752,-500.0,0.00055975,120]
[343174609,1732395100763,-500.0,0.00055975,120]
[343174610,1732395100773,-212.39,0.00055975,120]
[343174611,1732395100783,-500.0,0.00055975,120]
[343174612,1732395100793,-500.0,0.00055975,120]
[343174613,1732395100803,-500.0,0.00055975,120]
[343174614,1732395100813,-500.0,0.00055975,120]
[343174615,1732395100823,-462.48,0.00055975,120]
[343174616,1732395100833,-196.428988,0.00055975,120]
[343174617,1732395100842,-670.86,0.00055975,120]
[343174618,1732395100855,-670.86,0.00055975,120]
[343174619,1732395100864,-670.86,0.00055975,120]
[343174620,1732395100874,-670.86,0.00055975,120]
[343174621,1732395100886,-670.86,0.00055975,120]
[343174622,1732395100897,-670.86,0.00055975,120]
[343174623,1732395100906,-670.86,0.00055975,120]
[343174624,1732395100915,-671.07661599,0.00055975,120]
[343174625,1732395100926,-1136.02,0.00055975,120]
[343174626,1732395100935,-1136.02,0.00055975,120]
[343174627,1732395100944,-1136.02,0.00055975,120]
[343174628,1732395100953,-1136.02,0.00055975,120]
[343174629,1732395100964,-1136.02,0.00055975,120]
[343174630,1732395100973,-1136.02,0.00055975,120]
[343174631,1732395100982,-1136.02,0.00055975,120]
[343174632,1732395100992,-1136.02,0.00055975,120]
[343174633,1732395101001,-1136.02,0.00055975,120]
[343174634,1732395101010,-1136.1953868,0.00055975,120]
[343174635,1732395101019,-151.0,0.00055975,120]
[343174636,1732395101028,-500.0,0.00055975,120]
[343174637,1732395101037,-500.0,0.00055975,120]
[343174638,1732395101046,-500.0,0.00055975,120]
[343174639,1732395101055,-500.0,0.00055975,120]
[343174640,1732395101064,-500.0,0.00055975,120]
[343174641,1732395101073,-500.0,0.00055975,120]
[343174642,1732395101082,-500.0,0.00055975,120]
[343174643,1732395101091,-337.34467828,0.00055975,120]
[343174644,1732395101104,-622.372023,0.00055975,120]
[343174645,1732395101114,-1105.19,0.00055975,120]
[343174646,1732395101123,-1105.19,0.00055975,120]
[343174647,1732395101132,-1105.19,0.00055975,120]
[343174648,1732395101142,-1105.19,0.00055975,120]
[343174649,1732395101151,-1105.19,0.00055975,120]
[343174650,1732395101160,-500.0,0.00055975,120]
[343174651,1732395101169,-1105.19,0.00055975,120]
[343174652,1732395101178,-622.372023,0.00055975,120]
[343174653,1732395101187,-1105.19,0.00055975,120]
[343174654,1732395101197,-500.0,0.00055975,120]
[343174655,1732395101206,-1105.19,0.00055975,120]
[343174656,1732395101215,-434.59,0.00055975,120]
[343174657,1732395101224,-1105.19,0.00055975,120]
[343174658,1732395101233,-1105.27,0.00055975,120]
[343174659,1732395101242,-151.0,0.00055975,120]
[343174660,1732395101251,-874.11,0.00055975,120]
[343174661,1732395101261,-874.11,0.00055975,120]
[343174662,1732395101269,-874.11,0.00055975,120]
[343174663,1732395101278,-874.11,0.00055975,120]
[343174664,1732395101287,-874.11,0.00055975,120]
[343174665,1732395101296,-874.11,0.00055975,120]
[343174666,1732395101304,-874.11,0.00055975,120]
[343174667,1732395101314,-874.11,0.00055975,120]
[343174668,1732395101324,-874.11,0.00055975,120]
[343174669,1732395101335,-874.22546726,0.00055975,120]
[343174670,1732395101346,-1166.69,0.00055975,120]
[343174671,1732395101358,-1161.381959,0.00055975,120]
[343174672,1732395101367,-1166.69,0.00055975,120]
[343174673,1732395101377,-1166.69,0.00055975,120]
[343174674,1732395101386,-1166.69,0.00055975,120]
[343174675,1732395101395,-1166.69,0.00055975,120]
[343174676,1732395101404,-1166.69,0.00055975,120]
[343174677,1732395101414,-1166.69,0.00055975,120]
[343174678,1732395101423,-1166.69,0.00055975,120]
[343174679,1732395101432,-1166.69,0.00055975,120]
[343174680,1732395101441,-1166.86386844,0.00055975,120]
[343174681,1732395101451,-339.096666,0.00055975,120]
[343174682,1732395101460,-1161.381959,0.00055975,120]
[343174683,1732395101470,-339.096666,0.00055975,120]
[343174684,1732395101479,-588.104025,0.00055975,120]
[343174685,1732395101488,-588.104025,0.00055975,120]
[343174686,1732395101498,-221.498779,0.00055975,120]
[343174687,1732395101507,-221.498779,0.00055975,120]
[343174688,1732395101525,-151.0,0.00055975,120]
[343174689,1732395101541,-151.0,0.00055975,120]
[343174690,1732395101560,-500.0,0.00055975,120]
[343174691,1732395101579,-635.26,0.00055975,120]
[343174692,1732395101593,-2199.43,0.00055975,120]
[343174693,1732395101615,-2199.43,0.00055975,120]
[343174694,1732395101634,-2199.43,0.00055975,120]
[343174695,1732395101654,-2199.43,0.00055975,120]
[343174696,1732395101672,-2199.43,0.00055975,120]
[343174697,1732395101689,-2199.43,0.00055975,120]
[343174698,1732395101707,-2199.43,0.00055975,120]
[343174699,1732395101720,-2199.43,0.00055975,120]
[343174700,1732395101739,-2199.43,0.00055975,120]
[343174701,1732395101752,-2199.62553123,0.00055975,120]
[343174702,1732395101769,-738.3,0.00055975,120]
[343174703,1732395101784,-738.3,0.00055975,120]
[343174704,1732395101799,-738.3,0.00055975,120]
[343174705,1732395101814,-738.3,0.00055975,120]
[343174706,1732395101829,-738.3,0.00055975,120]
[343174707,1732395101843,-738.3,0.00055975,120]
[343174708,1732395101859,-738.3,0.00055975,120]
[343174709,1732395101874,-738.3,0.00055975,120]
[343174710,1732395101890,-738.3,0.00055975,120]
[343174711,1732395101905,-738.4528147,0.00055975,120]
[343174712,1732395101919,-533.03945,0.00055975,120]
[343174713,1732395101935,-533.03945,0.00055975,120]
[343174714,1732395101949,-1048.37,0.00055975,120]
[343174715,1732395101964,-1048.37,0.00055975,120]
[343174716,1732395101979,-1610.150188,0.00055975,120]
[343174717,1732395101993,-1048.37,0.00055975,120]
[343174718,1732395102007,-1048.37,0.00055975,120]
[343174719,1732395102021,-1048.37,0.00055975,120]
[343174720,1732395102035,-1048.37,0.00055975,120]
[343174721,1732395102049,-1048.37,0.00055975,120]
[343174722,1732395102062,-1048.37,0.00055975,120]
[343174723,1732395102075,-1048.37,0.00055975,120]
[343174724,1732395102088,-1048.49666377,0.00055975,120]
[343174725,1732395102103,-719.217155,0.00055975,120]
[343174726,1732395102117,-1610.150188,0.00055975,120]
[343174727,1732395102133,-719.217155,0.00055975,120]
[343174728,1732395102147,-151.0,0.00055975,120]
[343174729,1732395102160,-609.224922,0.00055975,120]
[343174730,1732395102174,-609.224922,0.00055975,120]
[343174731,1732395102188,-350.926,0.00055975,30]
[343174732,1732395102201,-500.0,0.00055975,30]
[343174733,1732395102215,-350.926,0.00055975,30]
[343174734,1732395102229,-500.0,0.00055975,30]
[343174735,1732395102243,-500.0,0.00055975,30]
[343174736,1732395102257,-500.0,0.00055975,30]
[343174737,1732395102271,-500.0,0.00055975,30]
[343174738,1732395102285,-500.0,0.00055975,30]
[343174739,1732395102299,-500.0,0.00055975,30]
[343174740,1732395102313,-500.0,0.00055975,30]
[343174741,1732395102327,-196.01,0.00055975,30]
[343174742,1732395102340,-151.0,0.00055975,120]
[343174743,1732395102356,-27467.23474371,0.00055976,30]
[343174744,1732395102370,-30000.0,0.00055976,60]
[343174745,1732395102385,-883.58216186,0.00055976,30]
[343174746,1732395102398,-5616817.80343291,0.00055976,120]
[343174747,1732395102413,-151.0,0.00055976,120]
[343174748,1732395102426,-155.732614,0.00055976,120]
[343174749,1732395102440,-187.563306,0.00055976,120]
[343174750,1732395102453,-151.0,0.00055976,120]
[343174751,1732395102467,-187.563306,0.00055976,120]
[343174752,1732395102481,-151.0,0.00055976,120]
[343174753,1732395102494,-151.0,0.00055976,120]
[343174754,1732395102508,-151.0,0.00055976,120]
[343174755,1732395102522,-1029.183445,0.00055976,120]
[343174756,1732395102535,-151.0,0.00055976,120]
[343174757,1732395102549,-1029.183445,0.00055976,120]
[343174758,1732395102563,-151.0,0.00055976,120]
[343174759,1732395102576,-478.470974,0.00055976,120]
[343174760,1732395102590,-478.470974,0.00055976,120]
[343174761,1732395102606,-669.909396,0.00055976,120]
[343174762,1732395102620,-669.909396,0.00055976,120]
[343174763,1732395102635,-151.0,0.00055976,120]
[343174764,1732395102649,-538.766025,0.00055976,120]
[343174765,1732395102663,-538.766025,0.00055976,120]
[343174766,1732395102677,-221.331552,0.00055976,120]
[343174767,1732395102691,-221.331552,0.00055976,120]
[343174768,1732395102705,-151.0,0.00055976,120]
[343174769,1732395102720,-151.0,0.00055976,120]
[343174770,1732395102734,-919.83258,0.00055976,120]
[343174771,1732395102749,-919.83258,0.00055976,120]
[343174772,1732395102763,-151.0,0.00055976,120]
[343174773,1732395102777,-151.0,0.00055976,120]
[343174774,1732395102795,-530.545643,0.00055976,120]
[343174775,1732395102810,-530.545643,0.00055976,120]
[343174776,1732395102825,-152.6381,0.00055976,120]
[343174777,1732395102841,-151.0,0.00055976,120]
[343174778,1732395102859,-570.950524,0.00055976,120]
[343174779,1732395102874,-570.950524,0.00055976,120]
[343174780,1732395102891,-151.0,0.00055976,120]
[343174781,1732395102906,-151.0,0.00055976,120]
[343174782,1732395102921,-537.267678,0.00055976,120]
[343174783,1732395102935,-490.770806,0.00055976,120]
[343174784,1732395103148,-490.770806,0.00055976,120]
[343174785,1732395103160,-537.267678,0.00055976,120]
[343174786,1732395103171,-151.0,0.00055976,120]
[343174787,1732395103181,-151.0,0.00055976,120]
[343174788,1732395103190,-151.0,0.00055976,120]
[343174789,1732395103199,-297.298152,0.00055976,120]
[343174790,1732395103209,-170.401115,0.00055976,120]
[343174791,1732395103218,-170.401115,0.00055976,120]
[343174792,1732395103228,-151.0,0.00055976,120]
[343174793,1732395103238,-170.401115,0.00055976,120]
[343174794,1732395103248,-151.0,0.00055976,120]
[343174795,1732395103258,-170.401115,0.00055976,120]
[343174796,1732395103267,-1062.144286,0.00055976,120]
[343174797,1732395103277,-1062.144286,0.00055976,120]
[343174798,1732395103286,-1062.144286,0.00055976,120]
[343174799,1732395103295,-1062.144286,0.00055976,120]
[343174800,1732395103304,-390.120924,0.00055976,120]
[343174801,1732395103314,-390.120924,0.00055976,120]
[343174802,1732395103324,-390.120924,0.00055976,120]
[343174803,1732395103334,-390.120924,0.00055976,120]
[343174804,1732395103344,-151.0,0.00055976,120]
[343174805,1732395103359,-622.372023,0.00055976,120]
[343174806,1732395103369,-622.372023,0.00055976,120]
[343174807,1732395103378,-151.0,0.00055976,120]
[343174808,1732395103389,-297.157744,0.00055976,120]
[343174809,1732395103398,-297.157744,0.00055976,120]
[343174810,1732395103409,-216.55713,0.00055976,120]
[343174811,1732395103419,-216.55713,0.00055976,120]
[343174812,1732395103428,-297.157744,0.00055976,120]
[343174813,1732395103437,-297.157744,0.00055976,120]
[343174814,1732395103447,-216.55713,0.00055976,120]
[343174815,1732395103456,-216.55713,0.00055976,120]
[343174816,1732395103465,-1161.381959,0.00055976,120]
[343174817,1732395103475,-339.096666,0.00055976,120]
[343174818,1732395103484,-1161.381959,0.00055976,120]
[343174819,1732395103495,-339.096666,0.00055976,120]
[343174820,1732395103505,-588.104025,0.00055976,120]
[343174821,1732395103515,-588.104025,0.00055976,120]
[343174822,1732395103525,-221.498779,0.00055976,120]
[343174823,1732395103534,-256.362652,0.00055976,120]
[343174824,1732395103544,-221.498779,0.00055976,120]
[343174825,1732395103554,-151.0,0.00055976,120]
[343174826,1732395103564,-533.03945,0.00055976,120]
[343174827,1732395103573,-533.03945,0.00055976,120]
[343174828,1732395103583,-1610.150188,0.00055976,120]
[343174829,1732395103593,-719.217155,0.00055976,120]
[343174830,1732395103606,-1610.150188,0.00055976,120]
[343174831,1732395103616,-719.217155,0.00055976,120]
[343174832,1732395103626,-151.0,0.00055976,120]
[343174833,1732395103636,-609.224922,0.00055976,120]
[343174834,1732395103646,-609.224922,0.00055976,120]
[343174835,1732395103656,-350.926,0.00055976,30]
[343174836,1732395103666,-350.926,0.00055976,30]
[343174837,1732395103675,-151.0,0.00055976,120]
[343174838,1732395103685,-400.0,0.00055977,120]
[343174839,1732395103694,-400.0,0.00055977,120]
[343174840,1732395103704,-400.0,0.00055978,120]
[343174841,1732395103713,-400.0,0.00055979,120]
[343174842,1732395103723,-400.0,0.00055979,120]
[343174843,1732395103734,-2307.58099086,0.00055979,120]
[343174844,1732395103743,-27467.23474371,0.0005598,30]
[343174845,1732395103753,-151.0,0.0005598,120]
[343174846,1732395103762,-151.0,0.0005598,120]
[343174847,1732395103772,-151.0,0.0005598,120]
[343174848,1732395103782,-151.0,0.0005598,120]
[343174849,1732395103792,-217.91748,0.0005598,120]
[343174850,1732395103801,-603.787961,0.0005598,120]
[343174851,1732395103811,-603.787961,0.0005598,120]
[343174852,1732395103820,-603.787961,0.0005598,120]
[343174853,1732395103830,-151.0,0.0005598,120]
[343174854,1732395103839,-151.0,0.0005598,120]
[343174855,1732395103849,-151.0,0.0005598,120]
[343174856,1732395103861,-603.787961,0.0005598,120]
[343174857,1732395103870,-603.787961,0.0005598,120]
[343174858,1732395103880,-603.787961,0.0005598,120]
[343174859,1732395103893,-151.0,0.0005598,120]
[343174860,1732395103903,-151.0,0.0005598,120]
[343174861,1732395103912,-151.0,0.0005598,120]
[343174862,1732395103922,-425.114129,0.0005598,120]
[343174863,1732395103932,-425.114129,0.0005598,120]
[343174864,1732395103941,-425.114129,0.0005598,120]
[343174865,1732395103951,-425.114129,0.0005598,120]
[343174866,1732395103960,-425.114129,0.0005598,120]
[343174867,1732395103971,-425.114129,0.0005598,120]
[343174868,1732395103982,-187.563306,0.0005598,120]
[343174869,1732395103991,-187.563306,0.0005598,120]
[343174870,1732395104000,-151.0,0.0005598,120]
[343174871,1732395104009,-187.563306,0.0005598,120]
[343174872,1732395104019,-187.563306,0.0005598,120]
[343174873,1732395104029,-151.0,0.0005598,120]
[343174874,1732395104038,-151.0,0.0005598,120]
[343174875,1732395104047,-151.0,0.0005598,120]
[343174876,1732395104056,-151.0,0.0005598,120]
[343174877,1732395104066,-151.0,0.0005598,120]
[343174878,1732395104075,-151.0,0.0005598,120]
[343174879,1732395104084,-1029.183445,0.0005598,120]
[343174880,1732395104093,-1029.183445,0.0005598,120]
[343174881,1732395104106,-282.725816,0.0005598,120]
[343174882,1732395104115,-1029.183445,0.0005598,120]
[343174883,1732395104124,-1029.183445,0.0005598,120]
[343174884,1732395104134,-151.0,0.0005598,120]
[343174885,1732395104143,-478.470974,0.0005598,120]
[343174886,1732395104153,-478.470974,0.0005598,120]
[343174887,1732395104163,-478.470974,0.0005598,120]
[343174888,1732395104173,-478.470974,0.0005598,120]
[343174889,1732395104183,-669.909396,0.0005598,120]
[343174890,1732395104192,-669.909396,0.0005598,120]
[343174891,1732395104201,-669.909396,0.0005598,120]
[343174892,1732395104211,-669.909396,0.0005598,120]
[343174893,1732395104220,-172.0,0.0005598,120]
[343174894,1732395104230,-538.766025,0.0005598,120]
[343174895,1732395104239,-538.766025,0.0005598,120]
[343174896,1732395104248,-538.766025,0.0005598,120]
[343174897,1732395104257,-538.766025,0.0005598,120]
[343174898,1732395104267,-221.331552,0.0005598,120]
[343174899,1732395104277,-221.331552,0.0005598,120]
[343174900,1732395104287,-221.331552,0.0005598,120]
[343174901,1732395104296,-221.331552,0.0005598,120]
[343174902,1732395104306,-151.0,0.0005598,120]
[343174903,1732395104316,-151.0,0.0005598,120]
[343174904,1732395104325,-151.0,0.0005598,120]
[343174905,1732395104335,-919.83258,0.0005598,120]
[343174906,1732395104345,-919.83258,0.0005598,120]
[343174907,1732395104358,-919.83258,0.0005598,120]
[343174908,1732395104367,-919.83258,0.0005598,120]
[343174909,1732395104376,-151.0,0.0005598,120]
[343174910,1732395104386,-151.0,0.0005598,120]
[343174911,1732395104396,-151.0,0.0005598,120]
[343174912,1732395104415,-530.545643,0.0005598,120]
[343174913,1732395104431,-530.545643,0.0005598,120]
[343174914,1732395104442,-530.545643,0.0005598,120]
[343174915,1732395104451,-530.545643,0.0005598,120]
[343174916,1732395104462,-570.950524,0.0005598,120]
[343174917,1732395104472,-570.950524,0.0005598,120]
[343174918,1732395104482,-570.950524,0.0005598,120]
[343174919,1732395104492,-570.950524,0.0005598,120]
[343174920,1732395104502,-151.0,0.0005598,120]
[343174921,1732395104512,-213.31878,0.0005598,120]
[343174922,1732395104523,-151.0,0.0005598,120]
[343174923,1732395104533,-151.0,0.0005598,120]
[343174924,1732395104543,-537.267678,0.0005598,120]
[343174925,1732395104552,-537.267678,0.0005598,120]
[343174926,1732395104562,-490.770806,0.0005598,120]
[343174927,1732395104571,-490.770806,0.0005598,120]
[343174928,1732395104580,-490.770806,0.0005598,120]
[343174929,1732395104590,-490.770806,0.0005598,120]
[343174930,1732395104600,-537.267678,0.0005598,120]
[343174931,1732395104614,-537.267678,0.0005598,120]
[343174932,1732395104624,-151.0,0.0005598,120]
[343174933,1732395104635,-151.0,0.0005598,120]
[343174934,1732395104645,-170.401115,0.0005598,120]
[343174935,1732395104655,-170.401115,0.0005598,120]
[343174936,1732395104665,-151.0,0.0005598,120]
[343174937,1732395104677,-205.06978,0.0005598,120]
[343174938,1732395104687,-170.401115,0.0005598,120]
[343174939,1732395104698,-170.401115,0.0005598,120]
[343174940,1732395104708,-1062.144286,0.0005598,120]
[343174941,1732395104718,-1062.144286,0.0005598,120]
[343174942,1732395104728,-1062.144286,0.0005598,120]
[343174943,1732395104738,-1062.144286,0.0005598,120]
[343174944,1732395104749,-390.120924,0.0005598,120]
[343174945,1732395104759,-390.120924,0.0005598,120]
[343174946,1732395104768,-390.120924,0.0005598,120]
[343174947,1732395104778,-390.120924,0.0005598,120]
[343174948,1732395104788,-151.0,0.0005598,120]
[343174949,1732395104804,-151.0,0.0005598,120]
[343174950,1732395104827,-622.372023,0.0005598,120]
[343174951,1732395104837,-622.372023,0.0005598,120]
[343174952,1732395104847,-622.372023,0.0005598,120]
[343174953,1732395104859,-622.372032,0.0005598,120]
[343174954,1732395104870,-164.8094,0.0005598,120]
[343174955,1732395104880,-297.157744,0.0005598,120]
[343174956,1732395104894,-297.157744,0.0005598,120]
[343174957,1732395104904,-216.55713,0.0005598,120]
[343174958,1732395104914,-216.55713,0.0005598,120]
[343174959,1732395104925,-297.157744,0.0005598,120]
[343174960,1732395104935,-297.157744,0.0005598,120]
[343174961,1732395104944,-216.55713,0.0005598,120]
[343174962,1732395104954,-216.55713,0.0005598,120]
[343174963,1732395104965,-1161.381959,0.0005598,120]
[343174964,1732395104976,-1161.381959,0.0005598,120]
[343174965,1732395104985,-339.096666,0.0005598,120]
[343174966,1732395104994,-339.096666,0.0005598,120]
[343174967,1732395105004,-1161.381959,0.0005598,120]
[343174968,1732395105014,-1161.381953,0.0005598,120]
[343174969,1732395105023,-339.096666,0.0005598,120]
[343174970,1732395105034,-339.096676,0.0005598,120]
[343174971,1732395105043,-588.104025,0.0005598,120]
[343174972,1732395105054,-588.104031,0.0005598,120]
[343174973,1732395105064,-221.498779,0.0005598,120]
[343174974,1732395105074,-221.498779,0.0005598,120]
[343174975,1732395105083,-221.498779,0.0005598,120]
[343174976,1732395105093,-221.498785,0.0005598,120]
[343174977,1732395105106,-214.708452,0.0005598,120]
[343174978,1732395105117,-207.42,0.0005598,30]
[343174979,1732395105127,-533.03945,0.0005598,120]
[343174980,1732395105137,-533.039455,0.0005598,120]
[343174981,1732395105146,-1610.150188,0.0005598,120]
[343174982,1732395105155,-719.217155,0.0005598,120]
[343174983,1732395105165,-1610.150178,0.0005598,120]
[343174984,1732395105175,-719.217149,0.0005598,120]
[343174985,1732395105184,-151.0,0.0005598,120]
[343174986,1732395105195,-609.224922,0.0005598,120]
[343174987,1732395105204,-609.224922,0.0005598,120]
[343174988,1732395105215,-350.926,0.0005598,30]
[343174989,1732395105225,-350.926,0.0005598,30]
[343174990,1732395105234,-260.168039,0.0005598,120]
[343174991,1732395105245,-960633.91184287,0.0005598,120]
[343174992,1732395105255,-103443.73816519,0.0005598,120]
[343174993,1732395105265,-107631.51958483,0.0005598,120]
[343174994,1732395105275,-498799.6838369,0.0005598,120]
[343174995,1732395105284,-114433.21900365,0.0005598,120]
[343174996,1732395105294,-3865.80021938,0.0005598,120]
[343174997,1732395105304,-36510.04544848,0.00055985,2]
[343174998,1732395105314,-7713.96414658,0.00055986,2]
[343174999,1732395105323,-779.58,0.00055989,120]
[343175000,1732395105333,-779.58,0.00055989,120]
[343175001,1732395105342,-779.58,0.00055989,120]
[343175002,1732395105352,-779.58,0.00055989,120]
[343175003,1732395105364,-779.58,0.00055989,120]
[343175004,1732395105374,-779.58,0.00055989,120]
[343175005,1732395105383,-779.58,0.00055989,120]
[343175006,1732395105393,-779.58,0.00055989,120]
[343175007,1732395105403,-779.58,0.00055989,120]
[343175008,1732395105412,-779.58,0.00055989,120]
[343175009,1732395105421,-779.58,0.00055989,120]
[343175010,1732395105431,-779.58,0.00055989,120]
[343175011,1732395105441,-779.58,0.00055989,120]
[343175012,1732395105451,-779.58,0.00055989,120]
[343175013,1732395105460,-779.58,0.00055989,120]
[343175014,1732395105470,-779.58,0.00055989,120]
[343175015,1732395105480,-779.58,0.00055989,120]
[343175016,1732395105490,-779.58,0.00055989,120]
[343175017,1732395105499,-779.59755156,0.00055989,120]
[343175018,1732395105509,-1005.8232208,0.00055989,120]
[343175019,1732395105519,-1005.82322081,0.00055989,120]
[343175020,1732395105528,-1005.8232208,0.00055989,120]
[343175021,1732395105541,-1005.8232208,0.00055989,120]
[343175022,1732395105550,-1005.8232208,0.00055989,120]
[343175023,1732395105560,-1005.8232208,0.00055989,120]
[343175024,1732395105570,-1005.8232208,0.00055989,120]
[343175025,1732395105580,-1005.8232208,0.00055989,120]
[343175026,1732395105590,-520196.6374744,0.00055989,30]
[343175027,1732395105599,-160499.26250006,0.00055989,7]
[343175028,1732395105756,-2541.54212083,0.00055989,59]
[343175029,1732395105768,-151.0,0.00055989,120]
[343175030,1732395105778,-151.0,0.00055989,120]
[343175031,1732395105788,-603.787961,0.00055989,120]
[343175032,1732395105798,-151.0,0.00055989,120]
[343175033,1732395105808,-603.787961,0.00055989,120]
[343175034,1732395105818,-271.00384,0.00055989,120]
[343175035,1732395105828,-425.114129,0.00055989,120]
[343175036,1732395105838,-1353.79835513,0.00055989,120]
[343175037,1732395105848,-425.114129,0.00055989,120]
[343175038,1732395105859,-187.563306,0.00055989,120]
[343175039,1732395105869,-187.563306,0.00055989,120]
[343175040,1732395105879,-297.798057,0.00055989,120]